fUST/lending_fUST_20250221
["ID","MTS","AMOUNT","RATE_DAILY","PERIOD"]
[353877391,1740108638975,-500.0,0.00013698,2]
[353877392,1740108638984,-899.06,0.00013698,2]
[353877393,1740108638993,-500.0,0.00013698,2]
[353877394,1740108639003,-2965.06,0.00013698,2]
[353877395,1740108639012,-1893.75,0.00013698,2]
[353877396,1740108639021,-500.0,0.00013698,2]
[353877397,1740108639030,-12368.39,0.00013698,2]
[353877398,1740108639040,-29817.62,0.00013698,2]
[353877399,1740108639050,-1155.97,0.00013698,2]
[353877400,1740108639059,-579.65,0.00013698,2]
[353877401,1740108639068,-2626.88,0.00013698,2]
[353877402,1740108639077,-1498.22,0.00013698,2]
[353877403,1740108639086,-501.33759164,0.00013698,2]
[353877404,1740108639095,-500.0,0.00013698,2]
[353877405,1740108639104,-915.53,0.00013698,2]
[353877406,1740108639113,-5183.19,0.00013698,2]
[353877407,1740108639123,-500.0,0.00013698,2]
[353877408,1740108639132,-500.0,0.00013698,2]
[353877409,1740108639141,-1107.5,0.00013698,2]
[353877410,1740108639150,-501.35360459,0.00013698,2]
[353877411,1740108639159,-950.54,0.00013698,2]
[353877412,1740108639168,-508.4735218,0.00013698,2]
[353877413,1740108639177,-500.0,0.00013698,2]
[353877414,1740108639186,-2828.99,0.00013698,2]
[353877415,1740108639195,-2987.19,0.00013698,2]
[353877416,1740108639204,-500.0,0.00013698,2]
[353877417,1740108639213,-1569.7,0.00013698,2]
[353877418,1740108639222,-712.21,0.00013698,2]
[353877419,1740108639231,-702.91,0.00013698,2]
[353877420,1740108639240,-1013.92,0.00013698,2]
[353877421,1740108639249,-500.0,0.00013698,2]
[353877422,1740108639258,-586.82359029,0.00013698,2]
[353877423,1740108639267,-500.0,0.00013698,2]
[353877424,1740108639276,-535.78,0.00013698,2]
[353877425,1740108639285,-501.76249434,0.00013698,2]
[353877426,1740108639294,-502.42400886,0.00013698,2]
[353877427,1740108639303,-500.0,0.00013698,2]
[353877428,1740108639313,-500.0,0.00013698,2]
[353877429,1740108639322,-500.0,0.00013698,2]
[353877430,1740108639331,-504.92992804,0.00013698,2]
[353877431,1740108639340,-838.68,0.00013698,2]
[353877432,1740108639350,-500.0,0.00013698,2]
[353877433,1740108639359,-500.0,0.00013698,2]
[353877434,1740108639377,-518.65,0.00013698,2]
[353877435,1740108639389,-2041.33,0.00013698,2]
[353877436,1740108639398,-500.0,0.00013698,2]
[353877437,1740108639408,-1636.13,0.00013698,2]
[353877438,1740108639421,-500.0,0.00013698,2]
[353877439,1740108639431,-500.0,0.00013698,2]
[353877440,1740108639441,-596.42994496,0.00013698,2]
[353877441,1740108639451,-500.0,0.00013698,2]
[353877442,1740108639461,-500.0,0.00013698,2]
[353877443,1740108639471,-500.0,0.00013698,2]
[353877444,1740108639481,-501.85779859,0.00013698,2]
[353877445,1740108639490,-500.0,0.00013698,2]
[353877446,1740108639501,-503.86098965,0.00013698,2]
[353877447,1740108639511,-581.44,0.00013698,2]
[353877448,1740108639522,-500.0,0.00013698,2]
[353877449,1740108639535,-4589.01,0.00013698,2]
[353877450,1740108639546,-581.44,0.00013698,2]
[353877451,1740108639557,-581.44,0.00013698,2]
[353877452,1740108639568,-581.44,0.00013698,2]
[353877453,1740108639578,-584.08,0.00013698,2]
[353877454,1740108639588,-581.44,0.00013698,2]
[353877455,1740108639599,-581.44,0.00013698,2]
[353877456,1740108639609,-581.44,0.00013698,2]
[353877457,1740108639620,-581.44,0.00013698,2]
[353877458,1740108639630,-500.54992197,0.00013698,2]
[353877459,1740108639640,-1616.94,0.00013698,2]
[353877460,1740108639650,-500.50972742,0.00013698,2]
[353877461,1740108639659,-1442.95,0.00013698,2]
[353877462,1740108639669,-500.0,0.00013698,2]
[353877463,1740108639678,-500.0,0.00013698,2]
[353877464,1740108639689,-1864.66,0.00013698,2]
[353877465,1740108639701,-709.19,0.00013698,2]
[353877466,1740108639711,-500.0,0.00013698,2]
[353877467,1740108639723,-288.49302939,0.00013698,2]
[353877468,1740108639733,-502.76172559,0.00013698,2]
[353877469,1740108639743,-500.0,0.00013698,2]
[353877470,1740108639752,-500.0,0.00013698,2]
[353877471,1740108639762,-500.0,0.00013698,2]
[353877472,1740108639772,-500.0,0.00013698,2]
[353877473,1740108639782,-500.0,0.00013698,2]
[353877474,1740108639791,-504.12576248,0.00013698,2]
[353877475,1740108639802,-259.0243072,0.00013699,2]
[353877476,1740108639811,-174.279252,0.00013699,2]
[353877477,1740108639820,-380.539916,0.00013699,2]
[353877479,1740108639831,-46255.5596464,0.00013699,2]
[353877480,1740108639841,-581.44,0.00013778,2]
[353877482,1740108639851,-500.0,0.00013778,2]
[353877483,1740108639861,-411.88411068,0.00013778,2]
[353877484,1740108639871,-500.0,0.00013778,2]
[353877485,1740108639880,-500.0,0.00013778,2]
[353877486,1740108639890,-500.0,0.00013778,2]
[353877487,1740108639901,-500.0,0.00013778,2]
[353877488,1740108639910,-500.0,0.00013778,2]
[353877489,1740108639920,-500.0,0.00013778,2]
[353877490,1740108639930,-500.0,0.00013778,2]
[353877491,1740108639939,-500.0,0.00013778,2]
[353877492,1740108639949,-500.0,0.00013778,2]
[353877493,1740108639958,-203.11434619,0.00013778,2]
[353877494,1740108639968,-180.17511083,0.00013778,2]
[353877495,1740108639977,-459.0300879,0.00013778,2]
[353877496,1740108639987,-500.0,0.00013778,2]
[353877497,1740108639996,-500.0,0.00013778,2]
[353877498,1740108640006,-500.0,0.00013778,2]
[353877499,1740108640015,-500.0,0.00013778,2]
[353877500,1740108640025,-500.0,0.00013778,2]
[353877501,1740108640038,-500.0,0.00013778,2]
[353877503,1740108640047,-500.0,0.00013778,2]
[353877504,1740108640057,-581.44,0.00013779,2]
[353877505,1740108640067,-581.44,0.00013779,2]
[353877506,1740108640077,-581.44,0.00013779,2]
[353877507,1740108640086,-581.44,0.00013779,2]
[353877508,1740108640096,-581.44,0.00013779,2]
[353877510,1740108640105,-581.44,0.00013779,2]
[353877512,1740108640115,-581.44,0.00013779,2]
[353877514,1740108640125,-500.0,0.0001378,2]
[353877516,1740108640134,-500.0,0.0001378,2]
[353877518,1740108640143,-500.0,0.0001378,2]
[353877520,1740108640153,-500.0,0.0001378,2]
[353877522,1740108640162,-500.0,0.0001378,2]
[353877524,1740108640172,-500.0,0.0001378,2]
[353877526,1740108640182,-500.0,0.0001378,2]
[353877528,1740108640191,-500.0,0.0001378,2]
[353877531,1740108640200,-500.0,0.0001378,2]
[353877532,1740108640209,-500.0,0.0001378,2]
[353877534,1740108640219,-500.0,0.0001378,2]
[353877535,1740108640228,-996.48,0.0001378,2]
[353877536,1740108640237,-500.0,0.0001378,2]
[353877537,1740108640247,-500.0,0.0001378,2]
[353877538,1740108640257,-500.0,0.0001378,2]
[353877539,1740108640266,-500.0,0.0001378,2]
[353877540,1740108640275,-500.0,0.0001378,2]
[353877541,1740108640285,-500.0,0.0001378,2]
[353877542,1740108640294,-611.56,0.0001378,2]
[353877543,1740108640303,-500.0,0.0001378,2]
[353877544,1740108640313,-500.0,0.0001378,2]
[353877545,1740108640322,-500.0,0.0001378,2]
[353877546,1740108640332,-782.52,0.0001378,2]
[353877547,1740108640341,-500.0,0.0001378,2]
[353877548,1740108640351,-500.0,0.0001378,2]
[353877549,1740108640360,-500.0,0.0001378,2]
[353877550,1740108640369,-500.0,0.0001378,2]
[353877552,1740108640379,-500.0,0.0001378,2]
[353877554,1740108640388,-500.0,0.0001378,2]
[353877555,1740108640398,-500.0,0.0001378,2]
[353877556,1740108640407,-500.0,0.0001378,2]
[353877557,1740108640416,-500.0,0.0001378,2]
[353877558,1740108640426,-500.0,0.0001378,2]
[353877559,1740108640435,-924.65,0.0001378,2]
[353877560,1740108640444,-562.95,0.0001378,2]
[353877561,1740108640454,-500.0,0.0001378,2]
[353877562,1740108640463,-500.0,0.0001378,2]
[353877563,1740108640472,-815.85,0.0001378,2]
[353877564,1740108640481,-500.0,0.0001378,2]
[353877565,1740108640490,-646.88448559,0.0001378,2]
[353877566,1740108640500,-322.90528435,0.0001378,2]
[353877567,1740108640509,-500.0,0.0001378,2]
[353877568,1740108640518,-500.0,0.0001378,2]
[353877569,1740108640531,-690.17,0.0001378,2]
[353877570,1740108640540,-500.0,0.0001378,2]
[353877571,1740108640549,-506.24042637,0.0001378,2]
[353877572,1740108640558,-500.0,0.0001378,2]
[353877573,1740108640569,-500.0,0.0001378,2]
[353877574,1740108640578,-616.17,0.0001378,2]
[353877575,1740108640587,-500.0,0.0001378,2]
[353877576,1740108640596,-500.0,0.0001378,2]
[353877577,1740108640605,-500.0,0.0001378,2]
[353877579,1740108640615,-14084.38,0.0001378,2]
[353877580,1740108640624,-500.0,0.0001378,2]
[353877581,1740108640633,-500.0,0.0001378,2]
[353877582,1740108640642,-500.0,0.0001378,2]
[353877583,1740108640651,-500.0,0.0001378,2]
[353877584,1740108640660,-2002.51,0.0001378,2]
[353877585,1740108640669,-614.74,0.0001378,2]
[353877586,1740108640679,-500.0,0.0001378,2]
[353877587,1740108640688,-500.0,0.0001378,2]
[353877588,1740108640697,-1658.62,0.0001378,2]
[353877589,1740108640706,-1964.65,0.0001378,2]
[353877590,1740108640715,-500.0,0.0001378,2]
[353877591,1740108640724,-1132.84,0.0001378,2]
[353877592,1740108640733,-6657.01,0.0001378,2]
[353877593,1740108640742,-1063.8,0.0001378,2]
[353877594,1740108640751,-1000.0,0.0001378,2]
[353877595,1740108640760,-500.0,0.0001378,2]
[353877596,1740108640769,-500.0,0.0001378,2]
[353877597,1740108640779,-899.06,0.0001378,2]
[353877598,1740108640788,-500.0,0.0001378,2]
[353877599,1740108640797,-2965.06,0.0001378,2]
[353877600,1740108640806,-1893.75,0.0001378,2]
[353877601,1740108640816,-500.0097318,0.0001378,2]
[353877602,1740108640825,-12368.39,0.0001378,2]
[353877603,1740108640834,-29817.62,0.0001378,2]
[353877604,1740108640843,-1155.97,0.0001378,2]
[353877605,1740108640852,-579.65,0.0001378,2]
[353877606,1740108640861,-2626.88,0.0001378,2]
[353877607,1740108640871,-1498.22,0.0001378,2]
[353877608,1740108640880,-503.36694849,0.0001378,2]
[353877609,1740108640892,-915.53,0.0001378,2]
[353877610,1740108640902,-5183.19,0.0001378,2]
[353877611,1740108640911,-500.0,0.0001378,2]
[353877612,1740108640920,-500.0,0.0001378,2]
[353877613,1740108640930,-1107.5,0.0001378,2]
[353877614,1740108640939,-950.54,0.0001378,2]
[353877615,1740108640949,-500.0,0.0001378,2]
[353877616,1740108640958,-2828.99,0.0001378,2]
[353877617,1740108640968,-2987.19,0.0001378,2]
[353877618,1740108640977,-500.0,0.0001378,2]
[353877619,1740108640987,-1569.7,0.0001378,2]
[353877620,1740108640997,-712.21,0.0001378,2]
[353877621,1740108641006,-702.91,0.0001378,2]
[353877622,1740108641016,-1013.92,0.0001378,2]
[353877623,1740108641026,-500.0,0.0001378,2]
[353877624,1740108641038,-535.78,0.0001378,2]
[353877625,1740108641049,-500.0,0.0001378,2]
[353877626,1740108641059,-500.0,0.0001378,2]
[353877627,1740108641068,-504.64122037,0.0001378,2]
[353877628,1740108641078,-838.68,0.0001378,2]
[353877629,1740108641087,-500.0,0.0001378,2]
[353877630,1740108641097,-503.83248927,0.0001378,2]
[353877631,1740108641107,-518.65,0.0001378,2]
[353877632,1740108641116,-2041.33,0.0001378,2]
[353877633,1740108641126,-503.93101736,0.0001378,2]
[353877634,1740108641136,-1636.13,0.0001378,2]
[353877635,1740108641146,-500.0,0.0001378,2]
[353877636,1740108641156,-500.0,0.0001378,2]
[353877637,1740108641166,-373.27396133,0.0001378,2]
[353877638,1740108641176,-500.0,0.0001378,2]
[353877639,1740108641186,-500.0,0.0001378,2]
[353877640,1740108641196,-500.0,0.0001378,2]
[353877641,1740108641205,-500.0,0.0001378,2]
[353877642,1740108641215,-4589.01,0.0001378,2]
[353877643,1740108641224,-584.08,0.0001378,2]
[353877644,1740108641234,-1616.94,0.0001378,2]
[353877645,1740108641244,-1442.95,0.0001378,2]
[353877646,1740108641253,-500.0,0.0001378,2]
[353877647,1740108641263,-500.0,0.0001378,2]
[353877648,1740108641272,-1864.66,0.0001378,2]
[353877649,1740108641282,-709.19,0.0001378,2]
[353877650,1740108641292,-512.35017562,0.0001378,2]
[353877651,1740108641302,-500.0,0.0001378,2]
[353877652,1740108641312,-500.0,0.0001378,2]
[353877653,1740108641321,-500.0,0.0001378,2]
[353877654,1740108641331,-500.0,0.0001378,2]
[353877655,1740108641340,-581.44,0.00013844,2]
[353877656,1740108641349,-581.44,0.00013844,2]
[353877657,1740108641359,-3000.0,0.00013845,2]
[353877658,1740108641369,-38980.20807772,0.00013845,2]
[353877659,1740108641378,-581.44,0.00013862,2]
[353877660,1740108641388,-581.44,0.00013862,2]
[353877661,1740108641398,-581.44,0.00013862,2]
[353877662,1740108641408,-581.44,0.00013862,2]
[353877663,1740108641419,-581.44,0.00013862,2]
[353877664,1740108641429,-581.45620356,0.00013862,2]
[353877665,1740108641439,-500.0,0.00013863,2]
[353877666,1740108641448,-500.0,0.00013863,2]
[353877667,1740108641459,-500.0,0.00013863,2]
[353877668,1740108641468,-500.0,0.00013863,2]
[353877669,1740108641478,-500.0,0.00013863,2]
[353877670,1740108641488,-500.0,0.00013863,2]
[353877671,1740108641497,-500.0,0.00013863,2]
[353877672,1740108641508,-500.0,0.00013863,2]
[353877673,1740108641646,-506.03743178,0.00013863,2]
[353877674,1740108641656,-996.48,0.00013863,2]
[353877675,1740108641666,-500.0,0.00013863,2]
[353877676,1740108641676,-500.0,0.00013863,2]
[353877677,1740108641686,-500.0,0.00013863,2]
[353877678,1740108641696,-500.0,0.00013863,2]
[353877679,1740108641706,-611.56,0.00013863,2]
[353877680,1740108641715,-500.0,0.00013863,2]
[353877681,1740108641725,-500.0,0.00013863,2]
[353877682,1740108641735,-500.0,0.00013863,2]
[353877683,1740108641744,-782.52,0.00013863,2]
[353877684,1740108641754,-500.0,0.00013863,2]
[353877685,1740108641764,-500.0,0.00013863,2]
[353877686,1740108641773,-500.0,0.00013863,2]
[353877687,1740108641783,-500.0,0.00013863,2]
[353877688,1740108641792,-500.0,0.00013863,2]
[353877689,1740108641802,-500.0,0.00013863,2]
[353877690,1740108641812,-500.0,0.00013863,2]
[353877691,1740108641821,-500.0,0.00013863,2]
[353877692,1740108641831,-500.0,0.00013863,2]
[353877693,1740108641841,-500.0,0.00013863,2]
[353877694,1740108641850,-924.65,0.00013863,2]
[353877695,1740108641861,-562.95,0.00013863,2]
[353877696,1740108641871,-500.0,0.00013863,2]
[353877697,1740108641880,-500.0,0.00013863,2]
[353877698,1740108641890,-815.85,0.00013863,2]
[353877699,1740108641899,-500.0,0.00013863,2]
[353877700,1740108641909,-500.0,0.00013863,2]
[353877701,1740108641919,-500.0,0.00013863,2]
[353877702,1740108641930,-690.17,0.00013863,2]
[353877703,1740108641939,-500.0,0.00013863,2]
[353877704,1740108641949,-500.0,0.00013863,2]
[353877705,1740108641959,-500.0,0.00013863,2]
[353877706,1740108641968,-616.17,0.00013863,2]
[353877707,1740108641978,-500.0,0.00013863,2]
[353877708,1740108641988,-500.0,0.00013863,2]
[353877709,1740108641998,-500.0,0.00013863,2]
[353877710,1740108642009,-14084.38,0.00013863,2]
[353877711,1740108642018,-402.1478177,0.00013863,2]
[353877712,1740108642028,-500.0,0.00013863,2]
[353877713,1740108642039,-500.0,0.00013863,2]
[353877714,1740108642048,-500.0,0.00013863,2]
[353877715,1740108642059,-2002.51,0.00013863,2]
[353877716,1740108642068,-614.74,0.00013863,2]
[353877717,1740108642078,-500.0,0.00013863,2]
[353877718,1740108642088,-500.0,0.00013863,2]
[353877719,1740108642098,-1658.62,0.00013863,2]
[353877720,1740108642108,-1964.65,0.00013863,2]
[353877721,1740108642118,-500.0,0.00013863,2]
[353877722,1740108642128,-1132.84,0.00013863,2]
[353877723,1740108642138,-6657.01,0.00013863,2]
[353877724,1740108642147,-1063.8,0.00013863,2]
[353877725,1740108642157,-1000.0,0.00013863,2]
[353877726,1740108642167,-500.0,0.00013863,2]
[353877727,1740108642177,-500.0,0.00013863,2]
[353877728,1740108642187,-899.06,0.00013863,2]
[353877729,1740108642196,-500.0,0.00013863,2]
[353877730,1740108642206,-2965.06,0.00013863,2]
[353877731,1740108642216,-1893.75,0.00013863,2]
[353877732,1740108642226,-12368.39,0.00013863,2]
[353877733,1740108642235,-29817.62,0.00013863,2]
[353877734,1740108642244,-1155.97,0.00013863,2]
[353877735,1740108642254,-579.65,0.00013863,2]
[353877736,1740108642263,-2626.88,0.00013863,2]
[353877737,1740108642273,-1498.22,0.00013863,2]
[353877738,1740108642283,-915.53,0.00013863,2]
[353877739,1740108642292,-5183.19,0.00013863,2]
[353877740,1740108642302,-500.0,0.00013863,2]
[353877741,1740108642311,-500.0,0.00013863,2]
[353877742,1740108642321,-1107.5,0.00013863,2]
[353877743,1740108642331,-950.54,0.00013863,2]
[353877744,1740108642340,-500.0,0.00013863,2]
[353877745,1740108642350,-2828.99,0.00013863,2]
[353877746,1740108642360,-2987.19,0.00013863,2]
[353877747,1740108642370,-500.0,0.00013863,2]
[353877748,1740108642379,-1569.7,0.00013863,2]
[353877749,1740108642389,-712.21,0.00013863,2]
[353877750,1740108642399,-702.91,0.00013863,2]
[353877751,1740108642409,-1013.92,0.00013863,2]
[353877752,1740108642418,-500.0,0.00013863,2]
[353877753,1740108642428,-535.78,0.00013863,2]
[353877754,1740108642438,-504.99505626,0.00013863,2]
[353877755,1740108642447,-500.0,0.00013863,2]
[353877756,1740108642457,-838.68,0.00013863,2]
[353877757,1740108642467,-500.0,0.00013863,2]
[353877758,1740108642477,-518.65,0.00013863,2]
[353877759,1740108642486,-2041.33,0.00013863,2]
[353877760,1740108642496,-1636.13,0.00013863,2]
[353877761,1740108642506,-500.0,0.00013863,2]
[353877762,1740108642515,-500.0,0.00013863,2]
[353877763,1740108642528,-500.0,0.00013863,2]
[353877764,1740108642537,-500.0,0.00013863,2]
[353877765,1740108642547,-505.02935806,0.00013863,2]
[353877766,1740108642557,-500.0,0.00013863,2]
[353877767,1740108642570,-4589.01,0.00013863,2]
[353877768,1740108642579,-584.08,0.00013863,2]
[353877769,1740108642589,-1616.94,0.00013863,2]
[353877770,1740108642600,-1442.95,0.00013863,2]
[353877771,1740108642609,-500.0,0.00013863,2]
[353877772,1740108642619,-500.0,0.00013863,2]
[353877773,1740108642628,-1864.66,0.00013863,2]
[353877774,1740108642638,-709.19,0.00013863,2]
[353877776,1740108642647,-500.0,0.00013863,2]
[353877778,1740108642657,-500.0,0.00013863,2]
[353877779,1740108642666,-500.0,0.00013863,2]
[353877780,1740108642676,-500.0,0.00013863,2]
[353877781,1740108642685,-500.0,0.00013945,2]
[353877782,1740108642695,-500.0,0.00013945,2]
[353877783,1740108642704,-500.0,0.00013945,2]
[353877784,1740108642714,-500.0,0.00013945,2]
[353877785,1740108642724,-500.0,0.00013945,2]
[353877786,1740108642734,-500.0,0.00013945,2]
[353877787,1740108642744,-500.0,0.00013945,2]
[353877788,1740108642753,-500.0,0.00013945,2]
[353877789,1740108642763,-996.48,0.00013945,2]
[353877790,1740108642772,-500.0,0.00013945,2]
[353877791,1740108642782,-500.0,0.00013945,2]
[353877792,1740108642791,-500.0,0.00013945,2]
[353877793,1740108642801,-500.0,0.00013945,2]
[353877794,1740108642810,-611.56,0.00013945,2]
[353877795,1740108642820,-500.0,0.00013945,2]
[353877796,1740108642829,-500.0,0.00013945,2]
[353877797,1740108642838,-500.0,0.00013945,2]
[353877798,1740108642848,-782.52,0.00013945,2]
[353877799,1740108642858,-500.0,0.00013945,2]
[353877800,1740108642867,-500.0,0.00013945,2]
[353877801,1740108642877,-504.49748366,0.00013945,2]
[353877802,1740108642887,-500.0,0.00013945,2]
[353877803,1740108642896,-500.0,0.00013945,2]
[353877804,1740108642906,-500.0,0.00013945,2]
[353877805,1740108642916,-500.0,0.00013945,2]
[353877806,1740108642926,-500.0,0.00013945,2]
[353877807,1740108642935,-500.0,0.00013945,2]
[353877808,1740108642944,-924.65,0.00013945,2]
[353877809,1740108642953,-562.95,0.00013945,2]
[353877810,1740108642963,-500.0,0.00013945,2]
[353877811,1740108642972,-500.0,0.00013945,2]
[353877812,1740108642982,-815.85,0.00013945,2]
[353877813,1740108642991,-500.0,0.00013945,2]
[353877814,1740108643001,-500.0,0.00013945,2]
[353877815,1740108643011,-500.0,0.00013945,2]
[353877816,1740108643020,-690.17,0.00013945,2]
[353877817,1740108643030,-500.0,0.00013945,2]
[353877818,1740108643042,-500.0,0.00013945,2]
[353877819,1740108643052,-500.0,0.00013945,2]
[353877820,1740108643063,-616.17,0.00013945,2]
[353877821,1740108643072,-500.0,0.00013945,2]
[353877822,1740108643084,-500.0,0.00013945,2]
[353877823,1740108643094,-500.0,0.00013945,2]
[353877824,1740108643105,-14084.38,0.00013945,2]
[353877825,1740108643115,-213.92220593,0.00013945,2]
[353877826,1740108643125,-500.0,0.00013945,2]
[353877827,1740108643135,-500.0,0.00013945,2]
[353877828,1740108643146,-2002.51,0.00013945,2]
[353877829,1740108643155,-614.74,0.00013945,2]
[353877830,1740108643166,-500.0,0.00013945,2]
[353877831,1740108643176,-500.0,0.00013945,2]
[353877832,1740108643185,-1658.62,0.00013945,2]
[353877833,1740108643195,-1964.65,0.00013945,2]
[353877834,1740108643205,-500.0,0.00013945,2]
[353877835,1740108643215,-1132.84,0.00013945,2]
[353877836,1740108643224,-6657.01,0.00013945,2]
[353877837,1740108643233,-1063.8,0.00013945,2]
[353877838,1740108643243,-1000.0,0.00013945,2]
[353877839,1740108643252,-500.0,0.00013945,2]
[353877840,1740108643262,-500.0,0.00013945,2]
[353877841,1740108643272,-899.06,0.00013945,2]
[353877842,1740108643281,-500.0,0.00013945,2]
[353877843,1740108643291,-2965.06,0.00013945,2]
[353877845,1740108643301,-1893.75,0.00013945,2]
[353877846,1740108643311,-12368.39,0.00013945,2]
[353877847,1740108643320,-29817.62,0.00013945,2]
[353877848,1740108643330,-1155.97,0.00013945,2]
[353877849,1740108643339,-579.65,0.00013945,2]
[353877851,1740108643349,-2626.88,0.00013945,2]
[353877852,1740108643358,-1498.22,0.00013945,2]
[353877853,1740108643368,-915.53,0.00013945,2]
[353877854,1740108643378,-5183.19,0.00013945,2]
[353877855,1740108643388,-500.0,0.00013945,2]
[353877856,1740108643397,-500.0,0.00013945,2]
[353877857,1740108643407,-1107.5,0.00013945,2]
[353877858,1740108643416,-950.54,0.00013945,2]
[353877859,1740108643426,-500.0,0.00013945,2]
[353877860,1740108643435,-2828.99,0.00013945,2]
[353877861,1740108643444,-2987.19,0.00013945,2]
[353877862,1740108643454,-500.0,0.00013945,2]
[353877863,1740108643463,-1569.7,0.00013945,2]
[353877864,1740108643473,-712.21,0.00013945,2]
[353877865,1740108643482,-702.91,0.00013945,2]
[353877866,1740108643491,-1013.92,0.00013945,2]
[353877867,1740108643500,-500.0,0.00013945,2]
[353877868,1740108643510,-535.78,0.00013945,2]
[353877869,1740108643520,-500.0,0.00013945,2]
[353877870,1740108643532,-838.68,0.00013945,2]
[353877871,1740108643542,-500.0,0.00013945,2]
[353877872,1740108643552,-518.65,0.00013945,2]
[353877873,1740108643561,-2041.33,0.00013945,2]
[353877874,1740108643598,-1636.13,0.00013945,2]
[353877875,1740108643608,-500.0,0.00013945,2]
[353877876,1740108643617,-500.0,0.00013945,2]
[353877877,1740108643627,-500.0,0.00013945,2]
[353877878,1740108643636,-500.0,0.00013945,2]
[353877879,1740108643645,-500.0,0.00013945,2]
[353877880,1740108643655,-4589.01,0.00013945,2]
[353877881,1740108643665,-584.08,0.00013945,2]
[353877882,1740108643674,-1616.94,0.00013945,2]
[353877883,1740108643683,-1442.95,0.00013945,2]
[353877884,1740108643693,-500.0,0.00013945,2]
[353877885,1740108643703,-500.0,0.00013945,2]
[353877886,1740108643713,-1864.66,0.00013945,2]
[353877887,1740108643722,-709.19,0.00013945,2]
[353877888,1740108643731,-623.91102744,0.00013945,2]
[353877889,1740108643740,-500.0,0.00013945,2]
[353877890,1740108643750,-500.0,0.00013945,2]
[353877891,1740108643760,-500.0,0.00013945,2]
[353877892,1740108643769,-1002.17246199,0.00013988,2]
[353877893,1740108643779,-151.0,0.00014,2]
[353877894,1740108643789,-151.0,0.00014,2]
[353877895,1740108643798,-308.5185246,0.00014,2]
[353877896,1740108643807,-151.0,0.00014,2]
[353877897,1740108643817,-250.28689407,0.00014008,2]
[353877898,1740108643827,-500.0,0.00014008,2]
[353877899,1740108643837,-500.0,0.00014008,2]
[353877900,1740108643847,-216.32689867,0.00014008,2]
[353877901,1740108643857,-2926.33189115,0.00014009,2]
[353877902,1740108643866,-203.08957342,0.00014009,2]
[353877903,1740108643876,-203.08,0.00014009,2]
[353877904,1740108643886,-280.23128327,0.00014009,2]
[353877905,1740108643895,-280.23128327,0.00014009,2]
[353877906,1740108643905,-280.23128327,0.00014009,2]
[353877907,1740108643914,-280.23128327,0.00014009,2]
[353877908,1740108643923,-280.23128327,0.00014009,2]
[353877909,1740108643932,-280.23128327,0.00014009,2]
[353877910,1740108643942,-280.23128327,0.00014009,2]
[353877911,1740108643951,-280.23128327,0.00014009,2]
[353877912,1740108643961,-280.23128327,0.00014009,2]
[353877913,1740108643971,-280.23128327,0.00014009,2]